[Event "20th Delhi GM Open 2023"]
[Site "New Delhi"]
[Date "2023.03.29"]
[Round "9.7"]
[White "Aleksandrov, Aleksej"]
[Black "Nitin, S.."]
[Result "1-0"]
[ECO "E94"]
[WhiteElo "2484"]
[BlackElo "2381"]
[Annotator "TA"]
[PlyCount "51"]
[EventDate "2023.03.23"]
[EventType "swiss"]
[EventCountry "IND"]
[SourceTitle "playchess.com"]
[Source "ChessBase"]
[SourceQuality "1"]
[TimeControl "5400+30"]

{[%evp 17,51,35,58,7,13,8,15,0,0,0,12,0,52,68,62,69,64,55,63,69,137,144,150,150,153,145,135,139,131,145,147,149,501,478,492,473]} 1. d4 {[%emt 0:00:03]} Nf6 {[%emt 0:00:33]} 2. c4 {[%emt 0:00:36]} g6 {[%emt 0:00:11]} 3. Nc3 {[%emt 0:00:05]} Bg7 {[%emt 0:00:07]} 4. e4 {[%emt 0:00:02]} d6 {[%emt 0:00:09]} 5. Be2 {[%emt 0:00:52]} O-O {[%emt 0:00:18]} 6. Nf3 {[%emt 0:00:03]} e5 {[%emt 0:00:46]} 7. O-O {[%emt 0:00:18]} Nbd7 {[%emt 0:00:29]} 8. Qc2 {[%emt 0:00:11]} Qe7 {[%emt 0:00:29]} 9. Rd1 {[%emt 0:07:15]} c6 {[%emt 0:01:01]} 10. dxe5 {[%emt 0:01:49] E94: King's Indian: Classical: 6 Be2 e5 7 0-0: Various Black 7th moves.} (10. d5 $14) 10... Nxe5 $11 {[%emt 0:19:19]} 11. Nxe5 {[%emt 0:01:45]} dxe5 {[%emt 0:04:22] [#]} 12. Rb1 $146 {[%emt 0:00:09] The position is equal.} ({Predecessor:} 12. h3 Be6 13. Bg5 Rfd8 14. b3 h6 15. Rxd8+ Rxd8 16. Be3 b6 17. Rd1 Rxd1+ 18. Qxd1 {½-½ Selvaraj,H-Sanitt,L (1873) ENG-ch Schools Final 2022 (2.3)}) 12... Ne8 {[%emt 0:05:18]} 13. b4 {[%emt 0:00:05]} Nc7 {[%emt 0:00:50]} 14. b5 {[%emt 0:00:13]} Ne6 {[%emt 0:03:40]} (14... Rd8 $1 $11) 15. bxc6 $14 {[%emt 0:01:37]} bxc6 {[%emt 0:00:59]} 16. Qa4 $1 $36 {[%emt 0:00:03][%mdl 2048] White has some pressure. White is more active.} Nd4 {[%emt 0:07:15]} 17. Ba3 {[%emt 0:00:39]} c5 {[%emt 0:07:03]} 18. Qa5 {[%emt 0:00:25]} Qh4 {[%emt 0:16:17]} (18... Nxe2+ 19. Nxe2 Qe6 20. Bxc5 $16 (20. Qxc5 Re8 $16)) ({Black should play} 18... Qd8 $1 $14 19. Qxc5 Re8) 19. Bxc5 $16 {[%emt 0:01:59]} (19. Qxc5 $6 Be6 $11) 19... Re8 {[%emt 0:00:07]} 20. Bf1 {[%emt 0:06:06]} (20. Bxa7 $2 Qe7 21. Nb5 Nxe2+ 22. Kh1 Nd4 $19) 20... Bg4 {[%emt 0:03:23]} 21. Rd3 {[%emt 0:00:11]} Be6 {[%emt 0:00:22]} 22. Nd5 {[%emt 0:12:32]} (22. Bxa7 $2 {perishes.} Qe7 23. Nb5 Nxb5 24. cxb5 Rxa7 $19) 22... Qxe4 {[%emt 0:07:33] [#]} 23. Nc7 {[%emt 0:02:01]} ({Inferior is} 23. Bxa7 Nc6 24. Qc7 Nxa7 $17) 23... Bxc4 {[%emt 0:12:10]} 24. Re1 {[%emt 0:01:39]} Ne2+ $2 {[%emt 0:00:10][%mdl 8192]} (24... Qc6 $16) 25. Bxe2 $18 {[%emt 0:00:09]} Bxd3 {[%emt 0:00:04]} 26. Bf3 {[%emt 0:00:31][%mdl 64] Pin, Skewer, Deflection.   Weighted Error Value: White=0.08 (flawless) /Black=0.40} ({Stronger than} 26. Nxa8 Bxe2 27. Nc7 Rc8 $15) 1-0

[Event "20th Delhi GM Open 2023"]
[Site "New Delhi"]
[Date "2023.03.29"]
[Round "9.8"]
[White "Rakhmatullaev, Almas"]
[Black "Fedorov, Alexei"]
[Result "0-1"]
[ECO "B22"]
[WhiteElo "2275"]
[BlackElo "2477"]
[Annotator "TA"]
[PlyCount "100"]
[EventDate "2023.03.23"]
[EventType "swiss"]
[EventCountry "IND"]
[SourceTitle "playchess.com"]
[Source "ChessBase"]
[SourceQuality "1"]
[TimeControl "5400+30"]

{[%evp 15,100,-4,11,0,0,0,-6,-5,22,-8,-7,0,0,0,0,0,0,1,4,2,14,14,14,13,14,16,16,16,16,-12,0,-26,-4,-51,-31,-58,-58,-72,-55,-123,-164,-196,-108,-100,-105,-104,-100,-86,-85,-91,-84,-95,-86,-82,-58,-62,-58,-134,-134,-130,-110,-835,-851,-1627,-1525,-5061,-3275,-5497,-5867,-5477,-2716,-1823,-663,-6382,-6193,-4602,-1829,-29970,-29971,-29949,-10960,-29981,-29982,-29982,-29983,-29983,-29984]} 1. e4 {[%emt 0:00:59][%cal Be2e4,Be4e5][%mdl 32]} c5 {[%emt 0:00:07]} 2. c3 {[%emt 0:00:17]} Nf6 {[%emt 0:00:25]} 3. e5 {[%emt 0:00:04]} Nd5 {[%emt 0:00:04]} 4. Nf3 {[%emt 0:00:13]} d6 {[%emt 0:01:14]} 5. d4 {[%emt 0:00:12]} cxd4 {[%emt 0:00:08]} 6. cxd4 {[%emt 0:00:09]} Nc6 {[%emt 0:01:03]} 7. Bc4 {[%emt 0:00:08]} dxe5 {[%emt 0:07:14]} 8. dxe5 {[%emt 0:02:57]} Ndb4 {[%emt 0:00:27]} 9. O-O {[%emt 0:00:07] The modern move. B22: Sicilian: 2 c3.} Qxd1 {[%emt 0:14:36]} 10. Rxd1 {[%emt 0:00:02]} Bg4 {[%emt 0:03:28] [#] Threatens to win with ...Nc2.} (10... Nc2 11. Na3 Nxa3 12. bxa3 $16) 11. Nc3 {[%emt 0:00:08] The position is equal.} e6 {[%emt 0:05:11]} 12. Bf4 {[%emt 0:09:43]} Bxf3 {[%emt 0:06:37]} 13. gxf3 {[%emt 0:00:09]} g5 {[%emt 0:00:03]} 14. Bg3 {[%emt 0:08:27]} (14. Bxg5 Rg8 15. h4 (15. f4 h6 $17 {[%mdl 64] Pin}) 15... h6 $17) 14... Bg7 {[%emt 0:00:44]} 15. a3 {[%emt 0:01:28]} Nc2 {[%emt 0:00:44]} 16. Rac1 {[%emt 0:01:05]} N2d4 {[%emt 0:00:08]} 17. Nb5 {[%emt 0:01:07] [#]} Bxe5 $146 {[%emt 0:07:34]} ({Resist} 17... Nxf3+ 18. Kg2 $14) (17... Rd8 {simplifies} 18. Nxd4 Nxd4 19. Kg2 O-O) ({Predecessor:} 17... Rd8 18. Nxd4 {½-½ Khamrakulov,D (2492)-Song,M (2409) New York Summer GM-A 2022 (1)}) 18. Bxe5 {[%emt 0:12:00]} Nxf3+ {[%emt 0:00:06] Excellent horsemanship.} 19. Kg2 {[%emt 0:00:03]} Nfxe5 {[%emt 0:01:13][%cal Bf3e5,Be5g6,Bg6f4][%mdl 32]} ({Not} 19... Nh4+ 20. Kh3 Nxe5 21. Nc7+ Ke7 22. Nxa8 $16) 20. Nc7+ {[%emt 0:00:25]} Ke7 {[%emt 0:00:06] aiming for ...Rac8.} 21. Nxa8 {[%emt 0:00:12]} Rxa8 {[%emt 0:01:49]} 22. Ba2 {[%emt 0:00:50]} Ng6 {[%emt 0:04:16]} 23. b4 {[%emt 0:00:19]} a6 {[%emt 0:00:37]} 24. Bb1 {[%emt 0:00:20]} (24. Bb3 $11 {should be considered.}) 24... f5 {[%emt 0:00:38]} 25. Rc5 {[%emt 0:00:47]} h5 {[%emt 0:01:36]} 26. Kf1 {[%emt 0:00:59][%cal Ob1f5]} Nf4 {[%emt 0:04:14]} 27. h4 {[%emt 0:05:57]} gxh4 $17 {[%emt 0:10:00]} 28. Bxf5 {[%emt 0:00:12][%cal Oc5c4] [#]} exf5 {[%emt 0:09:18]} ({Black should play} 28... h3 $1 $19 29. Be4 Rg8) 29. Rxf5 {[%emt 0:00:02]} Ng6 {[%emt 0:01:08]} 30. Re1+ {[%emt 0:00:08]} Kd7 {[%emt 0:00:12]} 31. Rxh5 {[%emt 0:00:18]} Nce7 {[%emt 0:02:56] Inhibits Rd5+.} 32. b5 {[%emt 0:02:54]} a5 {[%emt 0:06:57]} 33. b6 {[%emt 0:01:50]} Ra6 {[%emt 0:04:02]} 34. Re4 {[%emt 0:02:47]} Rxb6 {[%emt 0:03:35] White must now prevent ...Rb1+.} 35. Rxa5 {[%emt 0:00:10]} Rb3 {[%emt 0:01:07]} 36. Rb4 {[%emt 0:02:21]} ({Better is} 36. a4 $15) 36... Rxb4 {[%emt 0:00:29]} 37. axb4 {[%emt 0:00:01]} Nf4 {[%emt 0:00:26] ...Kc6 is the strong threat.} 38. f3 $2 {[%emt 0:03:12][%mdl 8192] White does not recover from this.} (38. Rc5 $17) 38... Ned5 $19 {[%emt 0:00:34]} 39. Kg1 {[%emt 0:02:22]} b6 {[%emt 0:00:42]} ({Weaker is} 39... Nxb4 40. Rb5 Nbd3 41. Rxb7+ Kd8 42. Rh7 $11) 40. Ra7+ {[%emt 0:10:38]} Kc6 {[%emt 0:00:09][%cal Oc6b5] Strongly threatening ...Kb5!} 41. Kf2 {[%emt 0:00:04]} Kb5 {[%emt 0:00:25]} 42. Ke1 {[%emt 0:00:19]} Kxb4 {[%emt 0:00:20]} 43. Kd2 {[%emt 0:00:05]} h3 {[%emt 0:00:41][%cal Bh4h3,Bh3h2][%mdl 32]} 44. Rh7 {[%emt 0:00:24] Against Nh5} Kb3 {[%emt 0:01:38] And now ...b5 would win.} 45. Rb7 {[%emt 0:00:46]} Kc4 {[%emt 0:00:21]} (45... Nh5 $142 46. Rh7 Ndf6) 46. Kc2 {[%emt 0:00:12]} Nh5 {[%emt 0:00:45]} 47. Rh7 {[%emt 0:00:47]} Ndf4 {[%emt 0:00:23] ( -> ...h2)} 48. Re7 {[%emt 0:01:18]} h2 {[%emt 0:00:08] Black mates.} 49. Re4+ {[%emt 0:00:05]} Kd5 {[%emt 0:00:13]} 50. Re1 {[%emt 0:00:02]} Ng3 {[%emt 0:00:08] Weighted Error Value: White=1.03/Black=0.19 (very precise)} 0-1

[Event "20th Delhi GM Open 2023"]
[Site "New Delhi"]
[Date "2023.03.29"]
[Round "9.9"]
[White "Sethuraman, S.P."]
[Black "Orozbaev, Eldiar"]
[Result "1-0"]
[ECO "C02"]
[WhiteElo "2639"]
[BlackElo "2313"]
[Annotator "TA"]
[PlyCount "99"]
[EventDate "2023.03.23"]
[EventType "swiss"]
[EventCountry "IND"]
[SourceTitle "playchess.com"]
[Source "ChessBase"]
[SourceQuality "1"]
[TimeControl "5400+30"]

{[%evp 12,99,10,31,31,18,27,21,32,25,62,46,73,62,55,72,155,147,139,154,221,222,212,202,233,220,268,280,262,144,144,149,140,139,201,199,258,201,198,188,198,199,203,194,199,177,176,181,197,200,189,189,191,189,189,190,184,184,237,229,260,258,269,270,263,260,250,237,304,314,314,309,311,303,288,288,441,362,602,608,589,559,633,608,729,705,639,633,879,817]} 1. e4 {[%emt 0:00:03][%cal Be2e4,Be4e5][%mdl 32]} e6 {[%emt 0:00:34]} 2. d4 {[%emt 0:00:06]} d5 {[%emt 0:00:03]} 3. e5 {[%emt 0:00:05]} c5 {[%emt 0:00:07][%cal Bc7c5,Bc5c4][%mdl 32]} 4. c3 {[%emt 0:00:04]} Nc6 {[%emt 0:00:05]} 5. Nf3 {[%emt 0:00:04]} Qb6 {[%emt 0:00:05]} 6. a3 {[%emt 0:00:10]} f6 {[%emt 0:00:05]} 7. Bd3 $1 {[%emt 0:00:13][%cal Bf1d3,Bd3c2,Bc2b3,Bb3a2][%mdl 32] The main line 7.Bd3 scores better than 7.b4.} fxe5 {[%emt 0:01:44] C02: French: Advance Variation.} 8. dxe5 {[%emt 0:00:06]} c4 {[%emt 0:00:04]} 9. Bc2 {[%emt 0:00:04]} g6 {[%emt 0:00:49] The position is equal.} 10. O-O {[%emt 0:00:07]} Nh6 {[%emt 0:01:43]} 11. Nbd2 {[%emt 0:11:09]} Ng4 {[%emt 0:12:28]} 12. b3 {[%emt 0:11:10]} cxb3 {[%emt 0:00:58]} ({Not} 12... Ncxe5 13. bxc4 Bg7 14. cxd5 $16) 13. Bxb3 {[%emt 0:00:59] And now c4 would win.} (13. Nxb3 {simplifies} Ngxe5 14. Nbd4 Nxd4 15. cxd4 Nc6 16. h4) 13... Bg7 {[%emt 0:07:44]} ({Black should play} 13... Bc5) 14. c4 $1 $16 {[%emt 0:02:28]} O-O {[%emt 0:12:20][%cal Og4f2]} (14... Bxe5 $2 15. Nxe5 Ngxe5 16. cxd5 exd5 17. Bxd5) 15. cxd5 {[%emt 0:06:43]} Ncxe5 {[%emt 0:03:18] [#]} (15... Bxe5 16. dxe6 Bxa1 17. e7+ Kg7 18. exf8=R Kxf8 19. Nc4 $18) (15... exd5 $16 16. Bxd5+ Kh8) 16. Rb1 $146 {[%emt 0:00:51]} ({Predecessor:} 16. dxe6 Bxe6 17. Rb1 Bxb3 18. Qxb3+ Qxb3 19. Rxb3 b6 20. h3 Nxf3+ 21. Nxf3 Nf6 22. Rd3 {½-½ Lebret,J (2096)-Ollier,P (2369) Avoine op 30th 2015 (2)}) 16... Kh8 {[%emt 0:12:44] [#]} 17. Ba2 {[%emt 0:01:29]} Qa6 {[%emt 0:02:33]} (17... Nxf3+ $2 18. gxf3 Qd8 19. fxg4 $18) 18. h3 {[%emt 0:06:27]} Nxf3+ {[%emt 0:15:27]} 19. Nxf3 {[%emt 0:00:16]} Nf6 {[%emt 0:00:02] [#]} (19... Ne5 $2 20. Nxe5 exd5 21. Qxd5 $18) 20. dxe6 {[%emt 0:00:28]} ({Only move:} 20. d6 $1 $18) 20... Bxe6 $16 {[%emt 0:00:22]} 21. Bxe6 {[%emt 0:00:06]} Qxe6 {[%emt 0:00:02]} 22. Rxb7 {[%emt 0:00:06] Black must now prevent Ng5.} Rfd8 {[%emt 0:13:39]} (22... Qd5 $16 23. Rc7 Rfc8 24. Rxc8+ Rxc8) 23. Rxa7 $18 {[%emt 0:08:31][%mdl 64] Deflection} Rac8 {[%emt 0:03:54]} (23... Qd5 $142 24. Rxa8 Qxa8) 24. Qe1 {[%emt 0:01:29]} Qxe1 {[%emt 0:02:05]} 25. Rxe1 {[%emt 0:01:06]} Ra8 {[%emt 0:00:03]} 26. Rb7 {[%emt 0:08:33]} Rab8 {[%emt 0:00:19]} 27. Rxb8 {[%emt 0:05:14]} Rxb8 {[%emt 0:00:04]} 28. Bf4 {[%emt 0:04:42]} Ra8 {[%emt 0:00:49]} 29. Bd6 {[%emt 0:00:11]} Nd5 {[%emt 0:00:23]} 30. Rb1 {[%emt 0:00:44]} Bf8 {[%emt 0:04:40]} 31. Bxf8 {[%emt 0:04:12]} Rxf8 {[%emt 0:00:03][%mdl 4096] Endgame KRN-KRN} 32. Rb5 {[%emt 0:00:46]} Nf4 {[%emt 0:00:38]} 33. h4 {[%emt 0:05:53]} Ra8 {[%emt 0:03:25]} 34. Rb3 {[%emt 0:01:01]} Rc8 {[%emt 0:00:52]} (34... Ne6 $142 35. Re3 Ra6) 35. g3 {[%emt 0:02:50]} Rc1+ {[%emt 0:00:48]} 36. Kh2 {[%emt 0:00:06]} Nd5 {[%emt 0:00:28]} 37. Kg2 {[%emt 0:02:09]} Rc2 {[%emt 0:01:07]} 38. Nd4 {[%emt 0:00:49]} Ra2 {[%emt 0:00:25]} 39. Ne6 {[%emt 0:00:43][%cal Rb3b8]} Kg8 {[%emt 0:00:21]} 40. Rb8+ {[%emt 0:00:30]} Kf7 {[%emt 0:00:04]} 41. Ng5+ {[%emt 0:00:03]} Ke7 {[%emt 0:00:09]} 42. Rb7+ {[%emt 0:00:14]} ({Don't do} 42. Nxh7 Rxa3 43. Rb5 Rd3 44. Rb7+ Ke8 $18) 42... Ke8 {[%emt 0:00:45]} 43. Rxh7 {[%emt 0:01:42]} Ne3+ {[%emt 0:00:53]} (43... Rxa3 {was called for.} 44. Nf7 Ra5) 44. Kf3 {[%emt 0:00:06]} Nd1 {[%emt 0:00:30]} (44... Nc4 45. Ne4 Rxa3+ 46. Kf4 Ra5) 45. Ne4 {[%emt 0:00:06] White is clearly winning.} Rxa3+ {[%emt 0:00:35]} 46. Kf4 {[%emt 0:00:11]} Ra5 {[%emt 0:00:51]} 47. Rg7 {[%emt 0:02:08]} Rf5+ {[%emt 0:01:17]} 48. Kg4 {[%emt 0:00:05]} Re5 {[%emt 0:00:30]} 49. f3 {[%emt 0:01:02]} Re6 {[%emt 0:00:03]} 50. Kg5 {[%emt 0:00:19] Weighted Error Value: White=0.06 (flawless) /Black=0.32} 1-0

[Event "20th Delhi GM Open 2023"]
[Site "New Delhi"]
[Date "2023.03.30"]
[Round "10.1"]
[White "Aravindh, Chithambaram VR."]
[Black "Pantsulaia, Levan"]
[Result "1-0"]
[ECO "A43"]
[WhiteElo "2607"]
[BlackElo "2597"]
[Annotator "TA"]
[PlyCount "75"]
[EventDate "2023.03.23"]
[EventType "swiss"]
[EventCountry "IND"]
[SourceTitle "playchess.com"]
[Source "ChessBase"]
[SourceQuality "1"]
[TimeControl "5400+30"]

{[%evp 17,75,30,31,21,27,10,27,0,0,0,0,-20,-20,-54,-29,-64,-46,-100,-91,-93,0,0,0,0,0,0,0,0,0,-76,-42,-45,-55,-72,0,0,0,0,59,43,739,724,1324,1082,1016,1013,974,889,830,706,636,581,762,766,720,637,769,770,891,710]} 1. d4 {[%emt 0:00:05]} c5 {[%emt 0:00:13]} 2. d5 {[%emt 0:00:13]} g6 {[%emt 0:00:06]} 3. e4 {[%emt 0:01:34]} Bg7 {[%emt 0:00:05]} 4. Nc3 {[%emt 0:04:44]} d6 {[%emt 0:00:11]} 5. Nf3 {[%emt 0:00:09]} Nf6 {[%emt 0:00:16][%cal Bg8f6,Bf6e8,Be8c7][%mdl 32]} 6. Bb5+ {[%emt 0:05:07]} Bd7 {[%emt 0:00:06]} 7. a4 {[%emt 0:00:05]} Bxb5 {[%emt 0:00:05]} 8. axb5 {[%emt 0:00:06]} O-O {[%emt 0:00:16]} 9. O-O {[%emt 0:00:05]} Nbd7 {[%emt 0:00:05]} 10. Qe2 {[%emt 0:14:05] 10.h3 is more fashionable. A43: Schmid Benoni.} Ne8 {[%emt 0:05:45]} 11. Bf4 {[%emt 0:00:36]} Nc7 {[%emt 0:00:06]} 12. Rfd1 {[%emt 0:04:45] White has an edge.} Nb6 {[%emt 0:00:39]} 13. h3 {[%emt 0:04:07]} Qd7 {[%emt 0:03:31]} 14. e5 {[%emt 0:00:41]} f6 {[%emt 0:00:12]} 15. e6 {[%emt 0:16:45]} Qe8 {[%emt 0:00:17]} 16. h4 {[%emt 0:00:57] [#]} f5 $146 {[%emt 0:18:26] White must now prevent ...Bxc3.} ({Predecessor:} 16... h6 17. g4 g5 18. Bg3 Qg6 19. h5 Qh7 20. Na4 f5 21. Nxb6 axb6 22. Rxa8 Rxa8 23. gxf5 Qxf5 {1-0 Deac,B (2683)-Brodowski,P (2450) Titled Tuesday intern op 28th Jun Late blitz 2022 (4)}) 17. Qd2 {[%emt 0:06:34]} ({Don't go for} 17. Qe3 $2 Bxc3 18. Qxc3 Nbxd5 $17) (17. Rab1 $15) 17... Bxc3 $17 {[%emt 0:12:45]} (17... Nxb5 $6 18. Nxb5 Qxb5 19. Rab1 $11) 18. bxc3 {[%emt 0:00:07][%cal Oc3c4] c4! is the strong threat.} Nbxd5 {[%emt 0:00:14]} ({Much weaker is} 18... Nxb5 $6 19. Bh6 $11) (18... Qxb5 $17 {aiming for ...Qc4.} 19. h5 Nbxd5) 19. Bh6 $11 {[%emt 0:01:06]} Rf6 {[%emt 0:00:04]} 20. c4 $36 {[%emt 0:01:12][%mdl 2048] White fights for an advantage.} Nb6 {[%emt 0:00:48]} 21. Qc3 {[%emt 0:01:46][%cal Od1d6]} Nxe6 {[%emt 0:07:01]} 22. Rxd6 $1 {[%emt 0:00:12][%mdl 64] [#] Deflection} Nd4 {[%emt 0:00:58]} 23. Nxd4 {[%emt 0:02:00]} exd6 $17 {[%emt 0:05:00]} ({Much worse is} 23... Rxd6 $6 24. Nxf5 Rf6 25. Nd6 $15) 24. Nf3 {[%emt 0:07:04]} Rf7 {[%emt 0:04:38]} 25. Bc1 $1 {[%emt 0:07:47] [#]} h6 {[%emt 0:14:58]} 26. Bxh6 $11 {[%emt 0:00:07]} Qe6 {[%emt 0:00:59]} 27. Re1 {[%emt 0:00:07][%cal Ba1e1,Be1e7,Be7e4][%mdl 32]} Qxc4 {[%emt 0:00:26]} (27... Qf6 $1 $11 28. Qxf6 Rxf6) 28. Qd2 $14 {[%emt 0:00:06]} Rf6 {[%emt 0:16:31][%mdl 8192] Loses the game.} (28... Qxb5 $2 29. Re6 Qb1+ 30. Kh2 $18) (28... Rd7 $14) 29. Re7 $18 {[%emt 0:03:15] Threatens to win with Bg7. White is clearly winning.} f4 {[%emt 0:05:54]} 30. Ng5 {[%emt 0:03:03] Intending Qe1 and mate.} Nd5 {[%emt 0:01:58]} 31. Re4 {[%emt 0:05:17]} Qa2 {[%emt 0:00:14]} 32. Qe1 {[%emt 0:00:05] White wants to mate with Re8+.} Raf8 {[%emt 0:01:11]} 33. Re8 {[%emt 0:00:45][%mdl 64] Pin} Ne3 {[%emt 0:02:23]} 34. Bxf8 {[%emt 0:00:20]} Rxf8 {[%emt 0:00:11]} 35. Rxf8+ {[%emt 0:00:06]} Kxf8 {[%emt 0:00:03]} 36. fxe3 {[%emt 0:00:04]} fxe3 {[%emt 0:00:28]} 37. Qxe3 {[%emt 0:00:23]} Qc4 {[%emt 0:01:05]} 38. Qe4 {[%emt 0:01:39] Artfully played by Aravindh.   Weighted Error Value: White=0.14 (very precise) /Black=0.15 (very precise)} 1-0

[Event "20th Delhi GM Open 2023"]
[Site "New Delhi"]
[Date "2023.03.30"]
[Round "10.2"]
[White "Savchenko, Boris"]
[Black "Aleksandrov, Aleksej"]
[Result "1/2-1/2"]
[ECO "C54"]
[WhiteElo "2552"]
[BlackElo "2484"]
[Annotator "TA"]
[PlyCount "46"]
[EventDate "2023.03.23"]
[EventType "swiss"]
[EventCountry "IND"]
[SourceTitle "playchess.com"]
[Source "ChessBase"]
[SourceQuality "1"]
[TimeControl "5400+30"]

{[%evp 12,46,15,10,21,20,20,15,31,6,26,0,0,6,52,40,60,0,0,0,0,0,0,0,0,0,0,0,0,0,0,0,0,0,0,0,0]} 1. e4 {[%emt 0:00:07]} e5 {[%emt 0:00:03]} 2. Nf3 {[%emt 0:00:05]} Nc6 {[%emt 0:00:03]} 3. Bc4 {[%emt 0:00:07]} Nf6 {[%emt 0:00:04]} 4. d3 {[%emt 0:00:07]} Bc5 {[%emt 0:00:08]} 5. c3 {[%emt 0:00:11]} d6 {[%emt 0:00:05]} 6. O-O {[%emt 0:00:16]} h6 {[%emt 0:00:07]} 7. Nbd2 {[%emt 0:08:01]} (7. b4 $5 Bb6 $8 8. Nbd2 $11) 7... O-O {[%emt 0:00:13] C54: Giuoco Piano: 4 c3 Nf6, main lines with 5 d4 and 5 d3.} 8. b4 {[%emt 0:00:12][%cal Bb2b4,Bb4b5][%mdl 32]} Bb6 {[%emt 0:00:05]} 9. a4 {[%emt 0:00:10] 9.Re1 is the modern continuation.} a5 {[%emt 0:04:01]} 10. b5 {[%emt 0:00:19]} Ne7 {[%emt 0:00:03][%cal Bc6e7,Be7g6,Bg6h4][%mdl 32]} 11. Bb3 {[%emt 0:16:26]} Ng6 {[%emt 0:00:09]} 12. Nc4 {[%emt 0:08:19]} Bg4 {[%emt 0:00:58]} (12... Bc5 $11) 13. h3 {[%emt 0:03:07]} Bh5 {[%emt 0:00:04] [#]} 14. Be3 $146 {[%emt 0:22:44]} ({Of course not} 14. g4 $6 Nxg4 15. hxg4 Bxg4 $11) (14. d4 $14) ({Predecessor:} 14. Nxb6 cxb6 15. Be3 Qc8 16. d4 Qxc3 17. Rc1 Qb2 18. Re1 exd4 19. Bxd4 Qa3 20. Ra1 {1-0 Kluehs,I (901)-Gossing,M (762) GER-ch U10 Willingen 2015 (5)}) 14... Nh4 {[%emt 0:03:13] The position is equal.} 15. Nxb6 {[%emt 0:28:09]} cxb6 {[%emt 0:02:56]} 16. g4 {[%emt 0:00:21]} Nxg4 $1 {[%emt 0:00:12]} 17. Nxh4 {[%emt 0:00:10]} (17. hxg4 $2 {perishes.} Bxg4 18. Nxh4 Bxd1 19. Rfxd1 Qxh4 $19) 17... Qxh4 {[%emt 0:00:18]} 18. hxg4 {[%emt 0:00:05]} Bxg4 {[%emt 0:00:04]} 19. f3 $1 {[%emt 0:00:05][%cal Oe3f2] [#] Hoping for Bf2!} Qg3+ {[%emt 0:00:05]} 20. Kh1 {[%emt 0:00:03][%cal Oa1a2] And now Ra2! would win.} Qh4+ {[%emt 0:00:17]} 21. Kg1 {[%emt 0:00:03][%cal Oe3f2] Black must now prevent Bf2!} Qg3+ {[%emt 0:00:03]} 22. Kh1 {[%emt 0:00:04][%cal Oa1a2] Threatens to win with Ra2!} Qh4+ {[%emt 0:00:05]} 23. Kg1 {[%emt 0:00:04][%cal Oe3f2] [#] aiming for Bf2!} Qg3+ {[%emt 0:00:03] Weighted Error Value: White=0.10 (very precise) /Black=0.06 (flawless)} 1/2-1/2

[Event "20th Delhi GM Open 2023"]
[Site "New Delhi"]
[Date "2023.03.30"]
[Round "10.3"]
[White "Fedorov, Alexei"]
[Black "Paichadze, Luka"]
[Result "0-1"]
[ECO "B12"]
[WhiteElo "2477"]
[BlackElo "2515"]
[Annotator "TA"]
[PlyCount "40"]
[EventDate "2023.03.23"]
[EventType "swiss"]
[EventCountry "IND"]
[SourceTitle "playchess.com"]
[Source "ChessBase"]
[SourceQuality "1"]
[TimeControl "5400+30"]

{[%evp 9,40,0,0,2,-3,0,0,0,0,0,0,0,7,0,0,0,0,-18,0,-7,-2,-77,0,-286,-287,-281,-305,-352,-346,-405,-387,-476,-471]} 1. e4 {[%emt 0:00:04]} c6 {[%emt 0:00:05]} 2. d4 {[%emt 0:00:10]} d5 {[%emt 0:00:07]} 3. e5 {[%emt 0:00:04]} c5 {[%emt 0:00:26]} 4. dxc5 {[%emt 0:00:37]} e6 {[%emt 0:00:08]} 5. a3 {[%emt 0:00:09]} Bxc5 {[%emt 0:00:09]} 6. b4 {[%emt 0:00:20] B12: Caro-Kann: Advance Variation.} Be7 {[%emt 0:00:41]} 7. Qg4 {[%emt 0:00:20]} g6 {[%emt 0:00:11]} 8. Nf3 {[%emt 0:01:27] The position is equal.} a5 {[%emt 0:01:48]} 9. b5 {[%emt 0:00:09]} ({Much weaker is} 9. Bb5+ Bd7 10. Bxd7+ Nxd7 $15) 9... Nd7 {[%emt 0:00:57][%cal Bb8d7,Bd7c5,Bc5d3][%mdl 32]} 10. Bd3 {[%emt 0:00:33]} h5 {[%emt 0:00:37]} 11. Qf4 {[%emt 0:01:17]} Nh6 {[%emt 0:00:21]} 12. O-O {[%emt 0:01:34]} Nc5 {[%emt 0:08:44] [#]} 13. Be3 $146 {[%emt 0:12:06]} ({Predecessor:} 13. Nc3 b6 14. Nd4 Bb7 15. Nc6 Bxc6 16. bxc6 Qc7 17. a4 Nf5 18. Ba3 Kf8 19. Rfd1 Qxc6 20. Bxf5 gxf5 {½-½ Colin,S (2437)-Ruefenacht,M (2510) olm19 final email 2016 [3]}) 13... b6 {[%emt 0:08:32]} 14. a4 {[%emt 0:08:55]} Bb7 {[%emt 0:01:21][%cal Og6g5]} 15. Nbd2 {[%emt 0:02:25]} (15. Rd1 $11) 15... Nf5 {[%emt 0:03:50]} (15... g5 $17 16. Qd4 (16. Nxg5 d4 $17) 16... Ng4) 16. Nd4 $2 {[%emt 0:15:02][%mdl 8192] [#]} (16. Bxf5 $11 gxf5 17. Rfd1) 16... Nxd3 $1 $19 {[%emt 0:08:40]} 17. cxd3 {[%emt 0:00:05] [#]} Nxd4 $1 {[%emt 0:00:20]} 18. Qxd4 {[%emt 0:00:14]} Bc5 {[%emt 0:00:05]} 19. Qf4 {[%emt 0:00:03] Bxc5 is the strong threat.} d4 {[%emt 0:00:06] ...g5 would be deadly.} 20. Nc4 {[%emt 0:00:06]} Qd5 {[%emt 0:02:44] Weighted Error Value: White=0.50/Black=0.05 (flawless)} (20... dxe3 $2 {too greedy.} 21. fxe3 O-O 22. Nd6 $19) 0-1